fUSD/lending_fUSD_20241202
["ID","MTS","AMOUNT","RATE_DAILY","PERIOD"]
[343971163,1733163205324,-1389.12,0.00025,120]
[343971164,1733163205374,-3083.83,0.00025,120]
[343971165,1733163205420,-3596.4,0.00025,120]
[343971166,1733163205469,-6223.61,0.00025,120]
[343971167,1733163205518,-500.0,0.00025,120]
[343971168,1733163205567,-987.08,0.00025,120]
[343971169,1733163205617,-802.91,0.00025,120]
[343971170,1733163205669,-500.0,0.00025,120]
[343971171,1733163205717,-1186.14,0.00025,120]
[343971172,1733163205764,-500.0,0.00025,120]
[343971173,1733163205814,-500.0,0.00025,120]
[343971174,1733163205862,-2304.24,0.00025,120]
[343971175,1733163205908,-2550.79,0.00025,120]
[343971176,1733163205955,-1651.19,0.00025,120]
[343971177,1733163206002,-2440.14,0.00025,120]
[343971178,1733163206047,-500.0,0.00025,120]
[343971179,1733163206096,-500.0,0.00025,120]
[343971180,1733163206141,-628.62,0.00025,120]
[343971181,1733163206188,-500.0,0.00025,120]
[343971182,1733163206233,-500.0,0.00025,120]
[343971183,1733163206278,-500.0,0.00025,120]
[343971184,1733163206324,-662.23,0.00025,120]
[343971185,1733163206370,-2776.88,0.00025,120]
[343971186,1733163206417,-500.0,0.00025,120]
[343971187,1733163206463,-4913.1,0.00025,120]
[343971188,1733163206510,-500.0,0.00025,120]
[343971189,1733163206558,-5795.76,0.00025,120]
[343971190,1733163206607,-988.63,0.00025,120]
[343971191,1733163206653,-2697.73,0.00025,120]
[343971192,1733163206699,-1007.86,0.00025,120]
[343971193,1733163206744,-515.90738192,0.00025,120]
[343971194,1733163206789,-6479.18,0.00025,120]
[343971195,1733163206836,-500.0,0.00025,120]
[343971196,1733163206880,-776.99,0.00025,120]
[343971197,1733163206927,-500.0,0.00025,120]
[343971198,1733163206973,-13167.44,0.00025,120]
[343971199,1733163207019,-500.0,0.00025,120]
[343971200,1733163207066,-1002.1,0.00025,120]
[343971201,1733163207112,-500.0,0.00025,120]
[343971202,1733163207157,-500.0,0.00025,120]
[343971203,1733163207204,-8318.26,0.00025,120]
[343971204,1733163207250,-500.0,0.00025,120]
[343971205,1733163207296,-500.0,0.00025,120]
[343971206,1733163207347,-5949.05,0.00025,120]
[343971207,1733163207397,-500.0,0.00025,120]
[343971208,1733163207448,-6421.24,0.00025,120]
[343971209,1733163207500,-897.93,0.00025,120]
[343971210,1733163207708,-1255.52,0.00025,120]
[343971211,1733163207796,-333.58190436,0.00025,120]
[343971212,1733163207851,-8333.33,0.00025,120]
[343971213,1733163207900,-704.72,0.00025,120]
[343971214,1733163207949,-500.0,0.00025,120]
[343971215,1733163207997,-5297.27,0.00025,120]
[343971216,1733163208046,-2962.53,0.00025,120]
[343971217,1733163208101,-500.0,0.00025,120]
[343971218,1733163208152,-4828.1,0.00025,120]
[343971219,1733163208201,-1702.38,0.00025,120]
[343971220,1733163208248,-500.0,0.00025,120]
[343971221,1733163208297,-500.0,0.00025,120]
[343971222,1733163208347,-500.0,0.00025,120]
[343971223,1733163208392,-28587.09,0.00025,120]
[343971224,1733163208438,-4150.77,0.00025,120]
[343971225,1733163208484,-500.0,0.00025,120]
[343971226,1733163208531,-2372.77,0.00025,120]
[343971227,1733163208583,-18311.17,0.00025,120]
[343971228,1733163208631,-2338.1,0.00025,120]
[343971229,1733163208676,-2364.82,0.00025,120]
[343971230,1733163208725,-2004.2,0.00025,120]
[343971231,1733163208772,-500.0,0.00025,120]
[343971232,1733163208821,-500.0,0.00025,120]
[343971233,1733163208868,-500.0,0.00025,120]
[343971234,1733163208919,-500.0,0.00025,120]
[343971235,1733163208973,-500.0,0.00025,120]
[343971236,1733163209025,-500.0,0.00025,120]
[343971237,1733163209081,-1750.61,0.00025,120]
[343971238,1733163209147,-4323.55,0.00025,120]
[343971239,1733163209196,-1623.84,0.00025,120]
[343971240,1733163209243,-374.090544,0.00025,120]
[343971241,1733163209295,-198.097515,0.00025,120]
[343971242,1733163209342,-4457.31,0.00025,120]
[343971243,1733163209388,-3262.33,0.00025,120]
[343971244,1733163209432,-3138.21,0.00025,120]
[343971245,1733163209479,-2752.41,0.00025,120]
[343971246,1733163209528,-871.83,0.00025,120]
[343971247,1733163209583,-537.48,0.00025,120]
[343971248,1733163209635,-972.8,0.00025,120]
[343971249,1733163209684,-3226.77,0.00025,120]
[343971250,1733163209733,-3551.45,0.00025,120]
[343971251,1733163209784,-500.0,0.00025,120]
[343971252,1733163209836,-1232.25,0.00025,120]
[343971253,1733163209891,-263.714665,0.00025,120]
[343971254,1733163209943,-2383.24,0.00025,120]
[343971255,1733163209995,-500.0,0.00025,120]
[343971256,1733163210042,-1337.06,0.00025,120]
[343971257,1733163210089,-903.67,0.00025,120]
[343971258,1733163210136,-2853.62,0.00025,120]
[343971259,1733163210181,-607.61,0.00025,120]
[343971260,1733163210227,-4347.20039,0.00025,120]
[343971261,1733163210271,-1034.88,0.00025,120]
[343971262,1733163210321,-500.0,0.00025,120]
[343971263,1733163210367,-1610.59,0.00025,120]
[343971264,1733163210413,-2639.1,0.00025,120]
[343971265,1733163210458,-1033.6,0.00025,120]
[343971266,1733163210503,-323.27416107,0.00025,120]
[343971267,1733163210549,-500.0,0.00025,120]
[343971268,1733163210604,-500.0,0.00025,120]
[343971269,1733163210651,-500.0,0.00025,120]
[343971270,1733163210699,-670.16,0.00025,120]
[343971271,1733163210749,-5496.32,0.00025,120]
[343971272,1733163210798,-3036.88,0.00025,120]
[343971273,1733163210848,-4060.28,0.00025,120]
[343971274,1733163210896,-3066.37,0.00025,120]
[343971275,1733163210942,-500.0,0.00025,120]
[343971276,1733163210991,-1800.62,0.00025,120]
[343971277,1733163211039,-6387.46,0.00025,120]
[343971278,1733163211089,-500.0,0.00025,120]
[343971279,1733163211137,-2079.21,0.00025,120]
[343971280,1733163211188,-26748.63,0.00025,120]
[343971281,1733163211235,-500.0,0.00025,120]
[343971282,1733163211282,-1158.76,0.00025,120]
[343971283,1733163211327,-1707.578403,0.00025,120]
[343971284,1733163211372,-500.0,0.00025,120]
[343971285,1733163211417,-5017.11,0.00025,120]
[343971286,1733163211463,-1169.65,0.00025,120]
[343971287,1733163211511,-500.0,0.00025,120]
[343971288,1733163211560,-5827.64,0.00025,120]
[343971289,1733163211615,-500.0,0.00025,120]
[343971290,1733163211665,-6717.81,0.00025,120]
[343971291,1733163211712,-679.34,0.00025,120]
[343971292,1733163211759,-884.33,0.00025,120]
[343971293,1733163212280,-500.0,0.00025,120]
[343971294,1733163212328,-7117.93,0.00025,120]
[343971295,1733163212377,-1112.61,0.00025,120]
[343971296,1733163212429,-1286.99,0.00025,120]
[343971297,1733163212478,-2092.11,0.00025,120]
[343971298,1733163212527,-500.0,0.00025,120]
[343971299,1733163212584,-500.0,0.00025,120]
[343971300,1733163212633,-500.0,0.00025,120]
[343971301,1733163212682,-2845.62,0.00025,120]
[343971302,1733163212729,-2119.42,0.00025,120]
[343971303,1733163212776,-500.0,0.00025,120]
[343971304,1733163212824,-7359.21,0.00025,120]
[343971305,1733163212872,-3942.68,0.00025,120]
[343971306,1733163212918,-10143.73,0.00025,120]
[343971307,1733163212968,-4073.69,0.00025,120]
[343971308,1733163213021,-1474.35,0.00025,120]
[343971309,1733163213075,-500.0,0.00025,120]
[343971310,1733163213129,-2272.62,0.00025,120]
[343971311,1733163213179,-219.83085247,0.00025,120]
[343971312,1733163213227,-36339.22,0.00025,120]
[343971313,1733163213275,-1010.32,0.00025,120]
[343971314,1733163213326,-500.0,0.00025,120]
[343971315,1733163213377,-500.0,0.00025,120]
[343971316,1733163213426,-8410.88,0.00025,120]
[343971317,1733163213476,-500.0,0.00025,120]
[343971318,1733163213525,-5165.44,0.00025,120]
[343971319,1733163213584,-1045.25,0.00025,120]
[343971320,1733163213638,-500.0,0.00025,120]
[343971321,1733163213691,-500.0,0.00025,120]
[343971322,1733163213743,-785.49,0.00025,120]
[343971323,1733163213797,-500.0,0.00025,120]
[343971324,1733163213851,-500.0,0.00025,120]
[343971325,1733163213903,-500.0,0.00025,120]
[343971326,1733163213955,-500.0,0.00025,120]
[343971327,1733163214006,-500.0,0.00025,120]
[343971328,1733163214056,-514.0859926,0.00025,120]
[343971329,1733163214108,-500.0,0.00025,120]
[343971330,1733163214157,-500.0,0.00025,120]
[343971331,1733163214208,-2549.54,0.00025,120]
[343971332,1733163214259,-15003.77,0.00025,120]
[343971333,1733163214306,-500.0,0.00025,120]
[343971334,1733163214354,-500.0,0.00025,120]
[343971335,1733163214404,-4005.09,0.00025,120]
[343971336,1733163214451,-979.69,0.00025,120]
[343971337,1733163214501,-1607.84,0.00025,120]
[343971338,1733163214554,-772.25,0.00025,120]
[343971339,1733163214609,-2104.83,0.00025,120]
[343971340,1733163214658,-4789.4,0.00025,120]
[343971341,1733163214704,-500.0,0.00025,120]
[343971342,1733163214751,-1337.91,0.00025,120]
[343971343,1733163214798,-3158.21,0.00025,120]
[343971344,1733163214846,-1412.95,0.00025,120]
[343971345,1733163214894,-2173.83,0.00025,120]
[343971346,1733163214943,-1561.73,0.00025,120]
[343971347,1733163214992,-649.46,0.00025,120]
[343971348,1733163215040,-2246.77,0.00025,120]
[343971349,1733163215088,-1124.92,0.00025,120]
[343971350,1733163215137,-10694.73,0.00025,120]
[343971351,1733163215184,-3430.66,0.00025,120]
[343971352,1733163215231,-500.0,0.00025,120]
[343971353,1733163215280,-500.0,0.00025,120]
[343971354,1733163215329,-2820.35,0.00025,120]
[343971355,1733163215381,-3757.59,0.00025,120]
[343971356,1733163215428,-500.0,0.00025,120]
[343971357,1733163215483,-880.2,0.00025,120]
[343971358,1733163215533,-500.0,0.00025,120]
[343971359,1733163215592,-1280.32,0.00025,120]
[343971360,1733163215765,-1591.65,0.00025,120]
[343971361,1733163215814,-500.0,0.00025,120]
[343971362,1733163215865,-4989.3,0.00025,120]
[343971363,1733163215912,-12452.34,0.00025,120]
[343971364,1733163215966,-766.32,0.00025,120]
[343971365,1733163216018,-500.0,0.00025,120]
[343971366,1733163216075,-15034.56,0.00025,120]
[343971367,1733163216127,-500.0,0.00025,120]
[343971368,1733163216176,-2426.69,0.00025,120]
[343971369,1733163216224,-1068.52,0.00025,120]
[343971370,1733163216277,-500.0,0.00025,120]
[343971371,1733163216326,-2573.38,0.00025,120]
[343971372,1733163216376,-6210.35,0.00025,120]
[343971373,1733163216424,-500.0,0.00025,120]
[343971374,1733163216472,-2519.4,0.00025,120]
[343971375,1733163216518,-500.0,0.00025,120]
[343971376,1733163216565,-6709.04,0.00025,120]
[343971377,1733163216615,-1077.17,0.00025,120]
[343971378,1733163216671,-5651.45,0.00025,120]
[343971379,1733163216717,-500.0,0.00025,120]
[343971380,1733163216762,-317.22,0.00025,120]
[343971381,1733163216809,-3110.07,0.00025,120]
[343971382,1733163216855,-3405.87,0.00025,120]
[343971383,1733163216903,-500.0,0.00025,120]
[343971384,1733163216951,-500.0,0.00025,120]
[343971385,1733163217002,-500.0,0.00025,120]
[343971386,1733163217051,-616.39,0.00025,120]
[343971387,1733163217100,-500.0,0.00025,120]
[343971388,1733163217147,-2611.06,0.00025,120]
[343971389,1733163217190,-500.0,0.00025,120]
[343971390,1733163217235,-9873.31,0.00025,120]
[343971391,1733163217282,-4498.86,0.00025,120]
[343971392,1733163217329,-9312.55,0.00025,120]
[343971393,1733163217375,-500.0,0.00025,120]
[343971394,1733163217423,-500.0,0.00025,120]
[343971395,1733163217469,-1102.97,0.00025,120]
[343971396,1733163217517,-500.0,0.00025,120]
[343971397,1733163217566,-500.0,0.00025,120]
[343971398,1733163217618,-2574.39,0.00025,120]
[343971399,1733163217667,-500.0,0.00025,120]
[343971400,1733163217716,-975.14,0.00025,120]
[343971401,1733163217765,-500.0,0.00025,120]
[343971402,1733163217813,-44565.43,0.00025,120]
[343971403,1733163217864,-500.0,0.00025,120]
[343971404,1733163217911,-610.73,0.00025,120]
[343971405,1733163217961,-500.0,0.00025,120]
[343971406,1733163218011,-6543.87,0.00025,120]
[343971407,1733163218062,-500.0,0.00025,120]
[343971408,1733163218116,-1758.72,0.00025,120]
[343971409,1733163218163,-10469.75,0.00025,120]
[343971410,1733163218208,-1307.93,0.00025,120]
[343971411,1733163218253,-500.0,0.00025,120]
[343971412,1733163218295,-820.95,0.00025,120]
[343971413,1733163218340,-848.28,0.00025,120]
[343971414,1733163218384,-500.0,0.00025,120]
[343971415,1733163218433,-500.0,0.00025,120]
[343971416,1733163218479,-500.0,0.00025,120]
[343971417,1733163218526,-6756.91,0.00025,120]
[343971418,1733163218578,-1527.24,0.00025,120]
[343971419,1733163218628,-500.0,0.00025,120]
[343971420,1733163218675,-500.0,0.00025,120]
[343971421,1733163218722,-847.93,0.00025,120]
[343971422,1733163218777,-1893.03,0.00025,120]
[343971423,1733163218825,-3551.88,0.00025,120]
[343971424,1733163218872,-500.0,0.00025,120]
[343971425,1733163218922,-7557.41,0.00025,120]
[343971426,1733163218974,-500.0,0.00025,120]
[343971427,1733163219024,-500.0,0.00025,120]
[343971428,1733163219076,-694.66,0.00025,120]
[343971429,1733163219125,-32157.7,0.00025,120]
[343971430,1733163219174,-729.63,0.00025,120]
[343971431,1733163219222,-1729.82,0.00025,120]
[343971432,1733163219268,-3756.75,0.00025,120]
[343971433,1733163220557,500.0,0.00025,120]
[343971434,1733163220996,500.0,0.00025,120]
[343971435,1733163221150,500.0,0.00025,120]
[343971436,1733163221331,539.15321159,0.00025,120]
[343971437,1733163221552,500.0,0.00025,120]
[343971438,1733163222256,500.0,0.00025,120]
[343971439,1733163222486,500.0,0.00025,120]
[343971440,1733163223027,500.0,0.00025,120]
[343971441,1733163223598,2035.84,0.00025,120]
[343971442,1733163223651,500.0,0.00025,120]
[343971443,1733163223704,500.0,0.00025,120]
[343971444,1733163224056,500.0,0.00025,120]
[343971445,1733163224146,500.0,0.00025,120]
[343971446,1733163224208,500.0,0.00025,120]
[343971447,1733163224265,1779.91,0.00025,120]
[343971448,1733163224330,500.0,0.00025,120]
[343971449,1733163224526,500.0,0.00025,120]
[343971450,1733163225314,11887.52,0.00025,120]
[343971451,1733163225489,500.0,0.00025,120]
[343971452,1733163225647,500.0,0.00025,120]
[343971453,1733163225724,500.0,0.00024862,120]
[343971454,1733163226279,366.33435503,0.00025,120]
[343971455,1733163226466,500.0,0.00025,120]
[343971456,1733163226527,500.0,0.00025,120]
[343971457,1733163226613,500.0,0.00025,120]
[343971458,1733163227724,500.0,0.00025,120]
[343971459,1733163228274,500.0,0.00025,120]
[343971460,1733163228900,500.0,0.00025,120]
[343971461,1733163229407,500.0,0.00025,120]
[343971462,1733163229647,500.0,0.00025,120]
[343971463,1733163229930,500.0,0.00025,120]
[343971464,1733163230184,500.0,0.00025,120]
[343971465,1733163230241,500.0,0.00025,120]
[343971466,1733163230366,500.0,0.00025,120]
[343971467,1733163231860,200.0,0.00024862,120]
[343971468,1733163232269,500.0,0.00025,120]
[343971469,1733163232467,628.13,0.00025,120]
[343971470,1733163232629,10914.89,0.00025,120]
[343971471,1733163233319,952.14,0.00025,120]
[343971472,1733163233373,500.0,0.00025,120]
[343971473,1733163233426,500.0,0.00025,120]
[343971474,1733163233512,500.0,0.00025,120]
[343971475,1733163234264,500.0,0.00025,120]
[343971476,1733163234673,500.0,0.00025,120]
[343971477,1733163234749,500.0,0.00025,120]
[343971478,1733163235189,500.0,0.00025,120]
[343971479,1733163235255,1564.75,0.00025,120]
[343971480,1733163235305,500.0,0.00025,120]
[343971481,1733163236082,500.0,0.00025,120]
[343971482,1733163236609,500.0,0.00025,120]
[343971483,1733163236704,500.0,0.00025,120]
[343971484,1733163236773,500.0,0.00025,120]
[343971485,1733163236825,4172.99,0.00025,120]
[343971486,1733163237108,500.0,0.00025,120]
[343971487,1733163237210,500.0,0.00025,120]
[343971488,1733163237333,475.00000001,0.00025,120]
[343971489,1733163238329,500.0,0.00025,120]
[343971490,1733163238384,500.0,0.00025,120]
[343971491,1733163238491,18434.78,0.00025,120]
[343971492,1733163238957,500.0,0.00025,120]
[343971493,1733163239391,490.93,0.00025,120]
[343971494,1733163239473,500.0,0.00025,120]
[343971495,1733163239871,500.0,0.00025,120]
[343971496,1733163239928,500.0,0.00025,120]
[343971497,1733163240529,500.0,0.00025,120]
[343971498,1733163241008,342.90608718,0.00025,120]
[343971499,1733163241332,500.0,0.00025,120]
[343971500,1733163241520,500.0,0.00025,120]
[343971501,1733163241596,500.0,0.00025,120]
[343971502,1733163241648,5741.25,6.838e-05,2]
[343971503,1733163243389,4055.98,0.00025,120]
[343971504,1733163244046,500.0,0.00025,120]
[343971505,1733163244114,21164.27,0.00025,120]
[343971506,1733163244727,500.0,0.00025,120]
[343971507,1733163245560,500.0,0.00025,120]
[343971508,1733163245767,500.0,0.00025,120]
[343971509,1733163246167,500.0,0.00025,120]
[343971510,1733163246536,500.0,0.00025,120]
[343971511,1733163246877,500.0,0.00025,120]
[343971512,1733163247202,7491.62,0.00025,120]
[343971513,1733163247653,11972.21,0.00025,120]
[343971514,1733163247840,2641.53,0.00025,120]
[343971515,1733163247965,500.0,0.00025,120]
[343971516,1733163248213,3068.09,0.00025,120]
[343971517,1733163248372,3218.34,0.00025,120]
[343971518,1733163249269,6600.65,0.00025,120]
[343971519,1733163250615,500.0,0.00025,120]
[343971520,1733163250684,666.35,0.00025,120]
[343971521,1733163251318,562.18,0.00025,120]
[343971522,1733163252164,500.0,0.00025,120]
[343971523,1733163254768,2760.25,0.00025,120]
[343971524,1733163255055,586.78,0.00025,120]
[343971525,1733163255683,166.67,7.056e-05,2]
[343971526,1733163256024,507.92,0.00025,120]
[343971527,1733163257232,500.0,0.00025,120]
[343971528,1733163257708,13764.06,0.00025,120]
[343971529,1733163257794,500.0,0.00025,120]
[343971530,1733163259156,1179.55,0.00025,120]
[343971531,1733163259317,1969.75,0.00025,120]
[343971532,1733163260354,4760.56,0.00025,120]
[343971533,1733163261152,1634.94,0.00025,120]
[343971534,1733163262155,1734.87,0.00025,120]
[343971535,1733163262338,500.0591409,0.00025,120]
[343971536,1733163263351,2762.69,0.00025,120]
[343971537,1733163263714,1160.85,0.00025,120]
[343971538,1733163265585,500.0,0.00025,120]
[343971539,1733163266700,613.37,0.00025,120]
[343971540,1733163266961,500.0,0.00025,120]
[343971541,1733163268017,500.0,0.00025,120]
[343971542,1733163268793,500.0,0.00025,120]
[343971543,1733163270109,1258.16,0.00025,120]
[343971544,1733163270225,2965.11,0.00025,120]
[343971545,1733163271379,1598.79,0.00025,120]
[343971546,1733163272484,590.52,0.00025,120]
[343971547,1733163272872,500.0,0.00025,120]
[343971548,1733163273269,818.73,0.00025,120]
[343971549,1733163273612,17548.21,0.00025,120]
[343971550,1733163274523,500.0,0.00025,120]
[343971551,1733163274592,3662.91,0.00025,120]
[343971552,1733163274861,1275.74,0.00025,120]
[343971553,1733163276358,10042.83,0.00025,120]
[343971554,1733163276741,4714.91,0.00025,120]
[343971555,1733163276858,500.0,0.00025,120]
[343971556,1733163277871,500.0,0.00025,120]
[343971557,1733163279166,556.37540535,0.00025,120]
[343971558,1733163279359,4589.84,0.00025,120]
[343971559,1733163280028,1676.51,0.00025,120]
[343971560,1733163280653,500.0,0.00025,120]
[343971561,1733163280719,602.29,0.00025,120]
[343971562,1733163280813,2529.14,0.00025,120]
[343971563,1733163280891,500.0,0.00025,120]
[343971564,1733163281540,1442.79,0.00025,120]
[343971565,1733163281818,2165.69,0.00025,120]
[343971566,1733163283702,3574.34,0.00025,120]
[343971567,1733163283775,606.93,0.00025,120]
[343971568,1733163284532,893.34,0.00025,120]
[343971569,1733163284810,4950.21,0.00025,120]
[343971570,1733163285892,5325.28,0.00025,120]
[343971571,1733163287643,531.7,0.00025,120]
[343971572,1733163287996,500.0,0.00025,120]
[343971573,1733163288109,500.0,0.00025,120]
[343971574,1733163288891,500.0,0.00025,120]
[343971575,1733163289289,500.0,0.00025,120]
[343971576,1733163289369,3951.02,0.00025,120]
[343971577,1733163289836,500.0,0.00025,120]
[343971578,1733163289897,8801.64,0.00025,120]
[343971579,1733163290682,1200.33,0.00025,120]
[343971580,1733163290921,1992.58,0.00025,120]
[343971581,1733163291858,500.0,0.00025,120]
[343971582,1733163291909,1476.59,0.00025,120]
[343971583,1733163292713,500.0,0.00025,120]
[343971584,1733163293697,4387.59,0.00025,120]
[343971585,1733163294798,5209.65,0.00025,120]
[343971586,1733163295009,1293.11,0.00025,120]
[343971587,1733163295733,500.0,0.00025,120]
[343971588,1733163296084,1528.52,0.00025,120]
[343971589,1733163296779,1057.51,0.00025,120]
[343971590,1733163297221,2732.31,0.00025,120]
[343971591,1733163297314,500.0,0.00025,120]
[343971592,1733163297367,2004.94,0.00025,120]
[343971593,1733163299393,500.0,0.00025,120]
[343971594,1733163299464,500.0,0.00025,120]
[343971595,1733163300481,617.55,0.00025,120]
[343971596,1733163300900,500.0,0.00025,120]
[343971597,1733163302032,5443.32,0.00025,120]
[343971598,1733163302507,500.0,0.00025,120]
[343971599,1733163302769,3351.98,0.00025,120]
[343971600,1733163303997,25654.94,0.00025,120]
[343971601,1733163304155,3071.78,0.00025,120]
[343971602,1733163304443,608.07,0.00025,120]
[343971603,1733163306326,3026.43,0.00025,120]
[343971604,1733163307761,3000.0,0.00025,120]
[343971605,1733163308079,3922.04,0.00025,120]
[343971606,1733163308197,500.0,0.00025,120]
[343971607,1733163308366,550.73,0.00025,120]
[343971608,1733163308545,500.0,0.00025,120]
[343971609,1733163308603,280.7810573,0.00025,120]
[343971610,1733163309783,500.0,0.00025,120]
[343971611,1733163309902,3903.96,0.00025,120]
[343971612,1733163310526,1754.4,0.00025,120]
[343971613,1733163310662,500.0,0.00025,120]
[343971614,1733163312086,7251.25,0.00025,120]
[343971615,1733163312294,500.0,0.00025,120]
[343971616,1733163312867,1732.99,0.00025,120]
[343971617,1733163313927,780.74,0.00025,120]
[343971618,1733163314817,500.0,0.00025,120]
[343971619,1733163315163,599.59,0.00025,120]
[343971620,1733163315573,527.39910872,0.00025,120]
[343971621,1733163315671,500.0,0.00025,120]
[343971622,1733163315866,5433.27,0.00025,120]
[343971623,1733163315939,633.59,0.00025,120]
[343971624,1733163317253,6360.66,0.00025,120]
[343971625,1733163317353,571.27,0.00025,120]
[343971626,1733163317450,588.11,0.00025,120]
[343971627,1733163317546,2536.9,0.00025,120]
[343971628,1733163317643,512.43,0.00025,120]
[343971629,1733163317703,500.0,0.00025,120]
[343971630,1733163318957,500.0,0.00025,120]
[343971631,1733163320705,3333.69,0.00025,120]
[343971632,1733163321497,500.0,0.00025,120]
[343971633,1733163321705,500.0,0.00025,120]
[343971634,1733163321780,500.0,0.00025,120]
[343971635,1733163322046,27626.33,0.00025,120]
[343971636,1733163322610,973.89,0.00025,120]
[343971637,1733163322839,1625.6,0.00025,120]
[343971638,1733163323912,38134.39,0.00025,120]
[343971639,1733163324078,4191.6,0.00025,120]
[343971640,1733163324509,1878.51,0.00025,120]
[343971641,1733163325665,500.0,0.00025,120]
[343971642,1733163325901,3663.84,0.00025,120]
[343971643,1733163326242,1135.88,0.00025,120]
[343971644,1733163326525,706.0,0.00025,120]
[343971645,1733163326613,500.0,0.00025,120]
[343971646,1733163326678,500.0,0.00025,120]
[343971647,1733163327562,500.0,0.00025,120]
[343971648,1733163327628,689.47,0.00025,120]
[343971649,1733163327763,1591.84,0.00025,120]
[343971650,1733163328501,500.0,0.00025,120]
[343971651,1733163329650,500.0,0.00025,120]
[343971652,1733163332020,500.0,0.00025,120]
[343971653,1733163332143,500.0,0.00025,120]
[343971654,1733163332461,2547.27,0.00025,120]
[343971655,1733163334176,1091.92,0.00025,120]
[343971656,1733163334243,518.15,0.00025,120]
[343971657,1733163334310,13781.68,0.00025,120]
[343971658,1733163334506,500.0,0.00025,120]
[343971659,1733163334727,500.0,0.00025,120]
[343971660,1733163335080,500.0,0.00025,120]
[343971661,1733163335439,972.65,0.00025,120]
[343971662,1733163335971,2739.42,0.00025,120]